Workbook

Sheet HOME
B1: ENERGY EFFICIENCY TOOLS FOR BOILER AND STEAM SYSTEMS
B2: VER_03/180519
B3: INTRODUCTION: This workbook consists of multiple tools that conduct Assessment of Compressed Air System, calculate Energy Performance of Compressors, and calculate Energy Saving Potentials in Compressed Air System
B4: INTRODUCTION: This workbook consists of multiple tools that conduct Assessment of Boilers and Steam System, calculate Energy Performance and Efficiency of Boilers, and calculate Energy Saving Potentials in the System.
B7: HOW TO USE:
B8: 1. Insert data from your company in cells that are highlighted in white. 2. Results of calculations will be displayed in Orange Cells. 3. Examples of Data and Calculation are shown in each tool.
B9: SOURCES:
B10: 1. Spirax Sarco Limited; http://www.spiraxsarco.com/pages/home.aspx 2. Improving Steam Boiler Operating Efficiency , by Enercon.gov.pk 3. Energy Technology Handbook, McGraw Hill, 9-46 4. Saturated Steam Table by Pressure; http://www.tlv.com/global/TI/calculator/steam-table-pressure.html 5. https://www.engineersedge.com/thermodynamics/steam_tables.htm 6. Properties of Saturated Steam; http://www.engineeringtoolbox.com/saturated-steam-properties-d_457.html 7. Water Thermal Properties; http://www.engineeringtoolbox.com/water-thermal-properties-d_162.html 8. www.enggcyclopedia.com/2011/09/sample-problem-insulation-thickness-calculation-pipe/ 9. www.engineeringtoolbox.com/fiberglas-insulation-k-values-d_1172.html 10. www.engineeringtoolbox.com/mineral-wool-insulation-k-values-d_815.html 11. "INSULATION AND REFRACTORIES" by Bureau of Energy Efficiency India page 122-128, pdhonline.org/cources/m157/m157 content.pdf 12. http://www.infrared-thermography.com/material.htm 13. Estimating of cost steam lost through orifices(By Henry Manczyk, CPE, CEM); http://www.swagelokenergy.com/download/ECSLTOST.pdf 14. Bureau of energy efficiency India 15. Enorcon Pakistan 16. APO Japan 17. Excel add-in for Steam and Water Tables "Water97_v13.xla" by Bernhard Spang
B11: WHO WE ARE:
B12: ESPIRE Consult provides consulting and training services in the fields of Resource Efficiency and Business Management in The Islamic Republic of Pakistan. Using internationally certified methodologies and systems, we provide end-to-end tailor made solutions to improve resource efficiencies resulting in cost reduction and operational excellence. From 2008 tiill 2016, ESPIRE operated as a partnership project between the Training and Development Centers of the Bavarian Employers‘ Association (bfz) gGmbH and business associations in Lahore and Karachi in Pakistan and was funded by the German Federal Ministry for Economic Cooperation and Development (BMZ) via Sequa gGmbH. The objective of ESPIRE project was to support industries in Pakistan to work economically more efficiently and ecologically more sustainable and start making energy conservation and cleaner production part of their work routine. Main project partners were; Pakistan Association of Automotive Parts and Accessories Manufacturers (PAAPAM), Pakistan Hosiery Manufacturers Association (PHMA), Pakistan Readymade Garments Manufacturers and Exporters Association (PRGMEA), Small and Medium Enterprises Development Authority (SMEDA), Towel Manufacturers Association of Pakistan (TMA). This tool is developed under the Project ESPIRE and updated, maintained and distributed by ESPIRE Consult free of cost.
B13: DISCLAIMER:
B14: The information, calculations and conclusions in this tool are based on the projects executed by the experts and consultant under Project ESPIRE by bfz gGmbH – International Division. Some sources (as mentioned above) were also consulted to validate the contents. The efficiency improvement measures proposed in this tool are tested and tried in many companies in Pakistan. However, implementation of these measures in any particular case should be based on real time data analysis by qualified engineers after judging financial viability. ESPIRE Consult, Bfz gGmbH – International Division and it's Project Partners in Pakistan accepts no liability whatsoever to any person, company or entity for any injury, loss or damage that may arise in connection with any misuse or reliance on the information. The tool is provided as a freeware. Users may make copies and distribute the tool without making any changes.
B15: CONTACT:
B16: Users may contact following for any clarification in this tool;
B17: Muhammad Salman Butt Executive Director Espire Consult, Pakistan 0092 305 5552343 salman@espire.com.pk

Sheet 1| Checklist Boiler System
B2: CHECKLIST FOR HOT WATER & BOILER SYSTEM
C3: ENERGY SAVING OPTIONS
B4: LEVEL | C4: PRODUCTION | D4: RATING
B5: - | C5: Optimize boiler excess air, excess oxygen, and CO levels according to fuel type through boiler tuning based on Flue Gas Analysis [1% excess air reduction will increase 0.6% efficiency of combustion]. | D5: »
B6: - | C6: Insulate the Boiler surface completely and regularly monitor the surface temperatures to keep it close to Ambient Temperature. | D6: »
B7: - | C7: Test Water Quality (feed water and Blow-down waste water) regularly to assess and maintain the efficiency of water treatment systems [Feed water and Blow-down TDS should be lesser than 100 ppm and 3500 ppm respectively]. | D7: »
B8: - | C8: Devise Blow-down cycle amounts and times based on water quality test to avoid the Blow-down loss. | D8: »
B9: - | C9: Analyse the gap between the Generated and Demanded steam pressure and try to minimize it. | D9: »
B10: - - | C10: Install automatic boiler Blow-down system. | D10: »
B11: - - | C11: Separate fresh water from condensate water to avoid heat loss. Preheat fresh water before mixing with condensate water. | D11: »
B12: - - | C12: Install stand-by feed water pump for contingency and to avoid any accidents. | D12: »
B13: - - | C13: Keep stack temperature of Boiler as low as possible. Install a waste heat recovery system if the temperature of stack is more than 200°C. | D13: »
B14: - - | C14: Install variable speed drives on Boiler Fans & Blowers. | D14: »
B15: - - - | C15: Install waste heat recovery systems (exhaust air, blow-down) to preheat feed water or inlet air [20 degree Celsius rise in inlet air increases thermal efficiency by 1%]. | D15: »
B16: - - - | C16: Install micro modulation system with automatic excess air control and oxygen trimming. | D16: »
B17: - - - | C17: Replace boiler if it is inefficient, over or under sized, and/or not fulfilling loading conditions. | D17: »
C18: NETWORK | D18: RATING
B19: - | C19: Regularly check steam distribution system for leakages and eliminate all steam leaks immediately. | D19: »
B20: - | C20: Seal and insulate the Condensate tank completely to avoid heat loss. | D20: »
B21: - | C21: Insulate all steam supply, condensate & feed water lines and fittings to avoid convection loss and keep the system pressure at optimum level. | D21: »
B22: - | C22: Regularly monitor and maintain steam velocity and pressure drops within maximum allowable limits. | D22: »
B23: - | C23: Avoid unnecessary Bends and Valves in the network. | D23: »
B24: - | C24: Install all branch pipes upwards to avoid accumulation of condensate. | D24: »
B25: - - | C25: Divide network in areas/sections to facilitate measurement and maintenance; shut off when not in use. | D25: »
B26: - - | C26: Install all steam pipes with a fall of 1% [1:100] in direction of steam flow towards steam traps. | D26: »
B27: - - | C27: Reduce the length of the network to avoid pressure drops at far points. | D27: »
B28: - - | C28: Regularly monitor and maintain steam traps. | D28: »
B29: - - | C29: Install pipe sizes appropriate to the flow and pressure requirements. | D29: »
B30: - - - | C30: Design a proper condensate return system to maintain the condensate temperature and reduce evaporation loss. Also consider pressurizing the condensate return system. | D30: »
C31: USE | D31: RATING
B32: - - | C32: Regularly check steam distribution system for leakages and eliminate all steam leaks immediately. | D32: »
B33: - - - | C33: Seal and insulate the Condensate tank completely to avoid heat loss. | D33: »
B34: - - - | C34: Insulate all steam supply, condensate & feed water lines and fittings to avoid convection loss and keep the system pressure at optimum level. | D34: »
B35: - - - | C35: Regularly monitor and maintain steam velocity and pressure drops within maximum allowable limits. | D35: »
C36: MAINTENANCE | D36: RATING
B37: - | C37: Monitor condensate temperatures regularly and keep it below saturated steam temperature (there should be no steam in the returned condensate). | D37: »
B38: - | C38: Regularly check the steam traps and repair or replace the failed steam traps. | D38: »
B39: - | C39: Regularly monitor pressure drops in the steam distribution system (Pressure drop of steam should be below 0.1 bar per 50m of transmission). | D39: »
B40: - | C40: Inspect boiler for scaling [indicators of scaling could be rise in flue gas temperature, imbalance between water intake and steam production, reduction in steam production. Every 22°C increase in temperature reduces thermal efficiency by 1%]. | D40: »
B41: - - | C41: Maintain cleanliness of boiler through feed water treatment (Reverse Osmosis, Chemical Treatment) to avoid fouling and/or scaling. | D41: »
B42: - - | C42: Physically inspect boiler for scaling at least once a year and remove any scaling. | D42: »
B43: - - | C43: Remove soot as it increases the stack temperature and reduces efficiency [every 3mm soot increases fuel consumption by 2.5%]. | D43: »
B45: LEVEL OF DIFFICULTY:
B46: - | C46: No/Low Cost or Short Term Investment [Pay-back period < 6 months]
B47: - - | C47: Medium Term Investment [Pay-back period < 18 months]
B48: - - - | C48: Long Term Investment or Needs Feasibility Study [Pay-back period > 18 months]
B50: RATING OF IMPLEMENTATION STATUS:
C51: Energy Saving Option has not been considered yet. | D51: 1
C52: Energy Saving Option is in the planning stage but not yet realized. | D52: 2
C53: Energy Saving Option is partially (not in all areas/ machines or not all the time) implemented/ realized. | D53: 3
C54: Energy Saving Option has been mostly implemented/ realized. | D54: 4
C55: Energy Saving Option is fully realized. | D55: 5
D56: »

Sheet Dropdown & Conversions (hidden)
C3: Fuel | D3: Price Unit | E3: GCV | F3: Net Heating Value | G3: Converted Fuel Price by Volume | J3: Fuel Consumption Unit | K3: Fuel per Ton of Steam | L3: Hourly Fuel Consumption
G4: Example Column | H4: Data Column
C5: Natural Gas | D5: [Rs/mmbtu] | E5: [btu/ft²] | F5: [kW/m³] | G5: =IF('2| Main Inputs'!C24="Natural Gas", ('2| Main Inputs'!C26*'2| Main Inputs'!C28*35.31/1000000), "-") -> - | H5: =IF('2| Main Inputs'!E24="Natural Gas", ('2| Main Inputs'!E26*'2| Main Inputs'!E28*35.31/1000000), "-") -> - | I5: [Rs/m³] | J5: [Sm³/mo] | K5: [Sm³/Ton] | L5: [Sm³/hr] | M5: [mmbtu/y]
C6: HFO | D6: [Rs/kg] | E6: [kJ/kg] | F6: [kW/kg] | G6: =IF('2| Main Inputs'!C24="HFO",('2| Main Inputs'!C26*1.0551/('2| Main Inputs'!C28/1000000)), "-") -> - | H6: =IF('2| Main Inputs'!E24="HFO",('2| Main Inputs'!E26*1.0551/('2| Main Inputs'!E28/1000000)), "-") -> - | I6: [Rs/mmbtu] | J6: [kg/mo] | K6: [kg/Ton] | L6: [kg/hr] | M6: [kg/y]
C7: LPG | G7: =IF('2| Main Inputs'!C24="LPG",('2| Main Inputs'!C26*1.0551/('2| Main Inputs'!C28/1000000)), "-") -> - | H7: =IF('2| Main Inputs'!E24="LPG",('2| Main Inputs'!E26*1.0551/('2| Main Inputs'!E28/1000000)), "-") -> - | I7: [Rs/mmbtu]
C8: Coal | G8: =IF('2| Main Inputs'!C24="Coal",('2| Main Inputs'!C26*1.0551/('2| Main Inputs'!C28/1000000)), "-") -> - | H8: =IF('2| Main Inputs'!E24="Coal",('2| Main Inputs'!E26*1.0551/('2| Main Inputs'!E28/1000000)), "-") ->  | I8: [Rs/mmbtu]
C12: Pressure Conversion
C13: [bar g] | D13: 1
C14: [psi] | D14: =14.5037738007*D13 -> 14.5037738
C16: mmbtu to kg | D16: mmbtu | E16: kg
C17: HFO | D17: 1 | E17: =D17*0.025219021687207*1000 -> 25.21902169
C18: LPG | D18: 1 | E18: =D18/0.047 -> 21.27659574
C19: Coal | D19: 1 | E19: =D19/0.019 -> 52.63157895

Sheet Steam and Water tables (hidden)
B2: Water Enthalpy Table | G2: Saturated Steam Enthalpy Table
B3: Temperature | D3: Pressure | E3: Specific enthalpy of liquid water * | G3: Pressure | I3: Specific enthalpy of Saturated Steam as function of Pressure *
B4: °C | C4: °K | D4: Bar | E4: kj/kg | G4: Bar | H4: psi | I4: kj/kg
B5: 0 | C5: =_xll.CONVERTIR(B5,"C","K") -> 273.15 | D5: 1.01325 | E5: 0.06101196191 | G5: 1 | H5: ='Dropdown & Conversions'!$D$14*'Steam and Water tables'!G5 -> 14.5037738 | I5: 2674.949641
B6: 1 | C6: =_xll.CONVERTIR(B6,"C","K") -> 274.15 | D6: 1.01325 | E6: 4.278708074 | G6: 2 | H6: ='Dropdown & Conversions'!$D$14*'Steam and Water tables'!G6 -> 29.0075476 | I6: 2706.241341
B7: 2 | C7: 275.15 | D7: 1.01325 | E7: 8.493130854 | G7: 3 | H7: ='Dropdown & Conversions'!$D$14*'Steam and Water tables'!G7 -> 43.5113214 | I7: 2724.891667
B8: 3 | C8: 276.15 | D8: 1.01325 | E8: 12.70455284 | G8: 4 | H8: ='Dropdown & Conversions'!$D$14*'Steam and Water tables'!G8 -> 58.0150952 | I8: 2738.056623
B9: 4 | C9: 277.15 | D9: 1.01325 | E9: 16.91322178 | G9: 5 | H9: ='Dropdown & Conversions'!$D$14*'Steam and Water tables'!G9 -> 72.518869 | I9: 2748.107615
B10: 5 | C10: 278.15 | D10: 1.01325 | E10: 21.11936298 | G10: 6 | H10: ='Dropdown & Conversions'!$D$14*'Steam and Water tables'!G10 -> 87.0226428 | I10: 2756.13889
B11: 6 | C11: 279.15 | D11: 1.01325 | E11: 25.32318145 | G11: 7 | H11: ='Dropdown & Conversions'!$D$14*'Steam and Water tables'!G11 -> 101.5264166 | I11: 2762.749083
B12: 7 | C12: 280.15 | D12: 1.01325 | E12: 29.52486387 | G12: 8 | H12: ='Dropdown & Conversions'!$D$14*'Steam and Water tables'!G12 -> 116.0301904 | I12: 2768.302465
B13: 8 | C13: 281.15 | D13: 1.01325 | E13: 33.72458035 | G13: 9 | H13: ='Dropdown & Conversions'!$D$14*'Steam and Water tables'!G13 -> 130.5339642 | I13: 2773.037623
B14: 9 | C14: 282.15 | D14: 1.01325 | E14: 37.92248601 | G14: 10 | H14: ='Dropdown & Conversions'!$D$14*'Steam and Water tables'!G14 -> 145.037738 | I14: 2777.119538
B15: 10 | C15: 283.15 | D15: 1.01325 | E15: 42.11872247 | G15: 11 | H15: ='Dropdown & Conversions'!$D$14*'Steam and Water tables'!G15 -> 159.5415118 | I15: 2780.667156
B16: 11 | C16: 284.15 | D16: 1.01325 | E16: 46.31341911 | G16: 12 | H16: ='Dropdown & Conversions'!$D$14*'Steam and Water tables'!G16 -> 174.0452856 | I16: 2783.769133
B17: 12 | C17: 285.15 | D17: 1.01325 | E17: 50.50669431 | G17: 13 | H17: ='Dropdown & Conversions'!$D$14*'Steam and Water tables'!G17 -> 188.5490594 | I17: 2786.493361
B18: 13 | C18: 286.15 | D18: 1.01325 | E18: 54.69865649 | G18: 14 | H18: ='Dropdown & Conversions'!$D$14*'Steam and Water tables'!G18 -> 203.0528332 | I18: 2788.893014
B19: 14 | C19: 287.15 | D19: 1.01325 | E19: 58.88940512 | G19: 15 | H19: ='Dropdown & Conversions'!$D$14*'Steam and Water tables'!G19 -> 217.556607 | I19: 2791.010536
B20: 15 | C20: 288.15 | D20: 1.01325 | E20: 63.07903157 | G20: 16 | H20: ='Dropdown & Conversions'!$D$14*'Steam and Water tables'!G20 -> 232.0603808 | I20: 2792.880364
B21: 16 | C21: 289.15 | D21: 1.01325 | E21: 67.26761994 | G21: 17 | H21: ='Dropdown & Conversions'!$D$14*'Steam and Water tables'!G21 -> 246.5641546 | I21: 2794.530829
B22: 17 | C22: 290.15 | D22: 1.01325 | E22: 71.45524776 | G22: 18 | H22: ='Dropdown & Conversions'!$D$14*'Steam and Water tables'!G22 -> 261.0679284 | I22: 2795.98553
B23: 18 | C23: 291.15 | D23: 1.01325 | E23: 75.64198665 | G23: 19 | H23: ='Dropdown & Conversions'!$D$14*'Steam and Water tables'!G23 -> 275.5717022 | I23: 2797.264337
B24: 19 | C24: 292.15 | D24: 1.01325 | E24: 79.82790294 | G24: 20 | H24: ='Dropdown & Conversions'!$D$14*'Steam and Water tables'!G24 -> 290.075476 | I24: 2798.38414
B25: 20 | C25: 293.15 | D25: 1.01325 | E25: 84.01305815 | G25: 21 | H25: ='Dropdown & Conversions'!$D$14*'Steam and Water tables'!G25 -> 304.5792498 | I25: 2799.35942
B26: 21 | C26: 294.15 | D26: 1.01325 | E26: 88.19750954 | G26: 22 | H26: ='Dropdown & Conversions'!$D$14*'Steam and Water tables'!G26 -> 319.0830236 | I26: 2800.202688
B27: 22 | C27: 295.15 | D27: 1.01325 | E27: 92.38131048 | G27: 23 | H27: ='Dropdown & Conversions'!$D$14*'Steam and Water tables'!G27 -> 333.5867974 | I27: 2800.924829
B28: 23 | C28: 296.15 | D28: 1.01325 | E28: 96.5645109 | G28: 24 | H28: ='Dropdown & Conversions'!$D$14*'Steam and Water tables'!G28 -> 348.0905712 | I28: 2801.53537
B29: 24 | C29: 297.15 | D29: 1.01325 | E29: 100.7471576 | G29: 25 | H29: ='Dropdown & Conversions'!$D$14*'Steam and Water tables'!G29 -> 362.594345 | I29: 2802.042704
B30: 25 | C30: 298.15 | D30: 1.01325 | E30: 104.9292946 | G30: 26 | H30: ='Dropdown & Conversions'!$D$14*'Steam and Water tables'!G30 -> 377.0981188 | I30: 2802.454255
B31: 26 | C31: 299.15 | D31: 1.01325 | E31: 109.1109635 | G31: 27 | H31: ='Dropdown & Conversions'!$D$14*'Steam and Water tables'!G31 -> 391.6018926 | I31: 2802.776629
B32: 27 | C32: 300.15 | D32: 1.01325 | E32: 113.2922036 | G32: 28 | H32: ='Dropdown & Conversions'!$D$14*'Steam and Water tables'!G32 -> 406.1056664 | I32: 2803.015727
B33: 28 | C33: 301.15 | D33: 1.01325 | E33: 117.4730521 | G33: 29 | H33: ='Dropdown & Conversions'!$D$14*'Steam and Water tables'!G33 -> 420.6094402 | I33: 2803.176842
B34: 29 | C34: 302.15 | D34: 1.01325 | E34: 121.6535445 | G34: 30 | H34: ='Dropdown & Conversions'!$D$14*'Steam and Water tables'!G34 -> 435.113214 | I34: 2803.264739
B35: 30 | C35: 303.15 | D35: 1.01325 | E35: 125.8337148 | G35: 31 | H35: ='Dropdown & Conversions'!$D$14*'Steam and Water tables'!G35 -> 449.6169878 | I35: 2803.283724
B36: 31 | C36: 304.15 | D36: 1.01325 | E36: 130.0135955 | G36: 32 | H36: ='Dropdown & Conversions'!$D$14*'Steam and Water tables'!G36 -> 464.1207616 | I36: 2803.237701
B37: 32 | C37: 305.15 | D37: 1.01325 | E37: 134.1932177 | G37: 33 | H37: ='Dropdown & Conversions'!$D$14*'Steam and Water tables'!G37 -> 478.6245354 | I37: 2803.130218
B38: 33 | C38: 306.15 | D38: 1.01325 | E38: 138.3726116 | G38: 34 | H38: ='Dropdown & Conversions'!$D$14*'Steam and Water tables'!G38 -> 493.1283092 | I38: 2802.964512
B39: 34 | C39: 307.15 | D39: 1.01325 | E39: 142.5518062 | G39: 35 | H39: ='Dropdown & Conversions'!$D$14*'Steam and Water tables'!G39 -> 507.632083 | I39: 2802.743541
B40: 35 | C40: 308.15 | D40: 1.01325 | E40: 146.7308296 | G40: 36 | H40: ='Dropdown & Conversions'!$D$14*'Steam and Water tables'!G40 -> 522.1358568 | I40: 2802.470016
B41: 36 | C41: 309.15 | D41: 1.01325 | E41: 150.9097092 | G41: 37 | H41: ='Dropdown & Conversions'!$D$14*'Steam and Water tables'!G41 -> 536.6396306 | I41: 2802.146427
B42: 37 | C42: 310.15 | D42: 1.01325 | E42: 155.0884716 | G42: 38 | H42: ='Dropdown & Conversions'!$D$14*'Steam and Water tables'!G42 -> 551.1434044 | I42: 2801.775066
B43: 38 | C43: 311.15 | D43: 1.01325 | E43: 159.2671429 | G43: 39 | H43: ='Dropdown & Conversions'!$D$14*'Steam and Water tables'!G43 -> 565.6471782 | I43: 2801.358046
B44: 39 | C44: 312.15 | D44: 1.01325 | E44: 163.4457484 | G44: 40 | H44: ='Dropdown & Conversions'!$D$14*'Steam and Water tables'!G44 -> 580.150952 | I44: 2800.897322
B45: 40 | C45: 313.15 | D45: 1.01325 | E45: 167.6243132 | G45: 41 | H45: ='Dropdown & Conversions'!$D$14*'Steam and Water tables'!G45 -> 594.6547258 | I45: 2800.394701
B46: 41 | C46: 314.15 | D46: 1.01325 | E46: 171.8028617 | G46: 42 | H46: ='Dropdown & Conversions'!$D$14*'Steam and Water tables'!G46 -> 609.1584996 | I46: 2799.851858
B47: 42 | C47: 315.15 | D47: 1.01325 | E47: 175.981418 | G47: 43 | H47: ='Dropdown & Conversions'!$D$14*'Steam and Water tables'!G47 -> 623.6622734 | I47: 2799.270349
B48: 43 | C48: 316.15 | D48: 1.01325 | E48: 180.1600059 | G48: 44 | H48: ='Dropdown & Conversions'!$D$14*'Steam and Water tables'!G48 -> 638.1660472 | I48: 2798.651622
B49: 44 | C49: 317.15 | D49: 1.01325 | E49: 184.3386487 | G49: 45 | H49: ='Dropdown & Conversions'!$D$14*'Steam and Water tables'!G49 -> 652.669821 | I49: 2797.997022
B50: 45 | C50: 318.15 | D50: 1.01325 | E50: 188.5173697 | G50: 46 | H50: ='Dropdown & Conversions'!$D$14*'Steam and Water tables'!G50 -> 667.1735948 | I50: 2797.307805
B51: 46 | C51: 319.15 | D51: 1.01325 | E51: 192.6961917 | G51: 47 | H51: ='Dropdown & Conversions'!$D$14*'Steam and Water tables'!G51 -> 681.6773686 | I51: 2796.585142
B52: 47 | C52: 320.15 | D52: 1.01325 | E52: 196.8751375 | G52: 48 | H52: ='Dropdown & Conversions'!$D$14*'Steam and Water tables'!G52 -> 696.1811424 | I52: 2795.830127
B53: 48 | C53: 321.15 | D53: 1.01325 | E53: 201.0542295 | G53: 49 | H53: ='Dropdown & Conversions'!$D$14*'Steam and Water tables'!G53 -> 710.6849162 | I53: 2795.043783
B54: 49 | C54: 322.15 | D54: 1.01325 | E54: 205.2334901 | G54: 50 | H54: ='Dropdown & Conversions'!$D$14*'Steam and Water tables'!G54 -> 725.18869 | I54: 2794.227066
B55: 50 | C55: 323.15 | D55: 1.01325 | E55: 209.4129414 | G55: 51 | H55: ='Dropdown & Conversions'!$D$14*'Steam and Water tables'!G55 -> 739.6924638 | I55: 2793.380874
B56: 51 | C56: 324.15 | D56: 1.01325 | E56: 213.5926054 | G56: 52 | H56: ='Dropdown & Conversions'!$D$14*'Steam and Water tables'!G56 -> 754.1962376 | I56: 2792.506046
B57: 52 | C57: 325.15 | D57: 1.01325 | E57: 217.7725041 | G57: 53 | H57: ='Dropdown & Conversions'!$D$14*'Steam and Water tables'!G57 -> 768.7000114 | I57: 2791.603371
B58: 53 | C58: 326.15 | D58: 1.01325 | E58: 221.9526593 | G58: 54 | H58: ='Dropdown & Conversions'!$D$14*'Steam and Water tables'!G58 -> 783.2037852 | I58: 2790.673588
B59: 54 | C59: 327.15 | D59: 1.01325 | E59: 226.1330925 | G59: 55 | H59: ='Dropdown & Conversions'!$D$14*'Steam and Water tables'!G59 -> 797.707559 | I59: 2789.717391
B60: 55 | C60: 328.15 | D60: 1.01325 | E60: 230.3138256 | G60: 56 | H60: ='Dropdown & Conversions'!$D$14*'Steam and Water tables'!G60 -> 812.2113328 | I60: 2788.735434
B61: 56 | C61: 329.15 | D61: 1.01325 | E61: 234.4948798 | G61: 57 | H61: ='Dropdown & Conversions'!$D$14*'Steam and Water tables'!G61 -> 826.7151066 | I61: 2787.72833
B62: 57 | C62: 330.15 | D62: 1.01325 | E62: 238.6762768 | G62: 58 | H62: ='Dropdown & Conversions'!$D$14*'Steam and Water tables'!G62 -> 841.2188804 | I62: 2786.696655
B63: 58 | C63: 331.15 | D63: 1.01325 | E63: 242.8580379 | G63: 59 | H63: ='Dropdown & Conversions'!$D$14*'Steam and Water tables'!G63 -> 855.7226542 | I63: 2785.640952
B64: 59 | C64: 332.15 | D64: 1.01325 | E64: 247.0401844 | G64: 60 | H64: ='Dropdown & Conversions'!$D$14*'Steam and Water tables'!G64 -> 870.226428 | I64: 2784.561732
B65: 60 | C65: 333.15 | D65: 1.01325 | E65: 251.2227375 | G65: 61 | H65: ='Dropdown & Conversions'!$D$14*'Steam and Water tables'!G65 -> 884.7302018 | I65: 2783.459476
B66: 61 | C66: 334.15 | D66: 1.01325 | E66: 255.4057186 | G66: 62 | H66: ='Dropdown & Conversions'!$D$14*'Steam and Water tables'!G66 -> 899.2339756 | I66: 2782.334637
B67: 62 | C67: 335.15 | D67: 1.01325 | E67: 259.5891486 | G67: 63 | H67: ='Dropdown & Conversions'!$D$14*'Steam and Water tables'!G67 -> 913.7377494 | I67: 2781.187641
B68: 63 | C68: 336.15 | D68: 1.01325 | E68: 263.7730488 | G68: 64 | H68: ='Dropdown & Conversions'!$D$14*'Steam and Water tables'!G68 -> 928.2415232 | I68: 2780.018889
B69: 64 | C69: 337.15 | D69: 1.01325 | E69: 267.9574402 | G69: 65 | H69: ='Dropdown & Conversions'!$D$14*'Steam and Water tables'!G69 -> 942.745297 | I69: 2778.82876
B70: 65 | C70: =_xll.CONVERTIR(B70,"C","K") -> 338.15 | D70: 1.01325 | E70: 272.1423439 | G70: 66 | H70: ='Dropdown & Conversions'!$D$14*'Steam and Water tables'!G70 -> 957.2490708 | I70: 2777.617611
B71: 66 | C71: 339.15 | D71: 1.01325 | E71: 276.3277809 | G71: 67 | H71: ='Dropdown & Conversions'!$D$14*'Steam and Water tables'!G71 -> 971.7528446 | I71: 2776.385776
B72: 67 | C72: 340.15 | D72: 1.01325 | E72: 280.5137722 | G72: 68 | H72: ='Dropdown & Conversions'!$D$14*'Steam and Water tables'!G72 -> 986.2566184 | I72: 2775.133573
B73: 68 | C73: 341.15 | D73: 1.01325 | E73: 284.7003386 | G73: 69 | H73: ='Dropdown & Conversions'!$D$14*'Steam and Water tables'!G73 -> 1000.760392 | I73: 2773.861299
B74: 69 | C74: 342.15 | D74: 1.01325 | E74: 288.8875012 | G74: 70 | H74: ='Dropdown & Conversions'!$D$14*'Steam and Water tables'!G74 -> 1015.264166 | I74: 2772.569235
B75: 70 | C75: 343.15 | D75: 1.01325 | E75: 293.0752807 | G75: 71 | H75: ='Dropdown & Conversions'!$D$14*'Steam and Water tables'!G75 -> 1029.76794 | I75: 2771.257644
B76: 71 | C76: 344.15 | D76: 1.01325 | E76: 297.2636982 | G76: 72 | H76: ='Dropdown & Conversions'!$D$14*'Steam and Water tables'!G76 -> 1044.271714 | I76: 2769.926775
B77: 72 | C77: 345.15 | D77: 1.01325 | E77: 301.4527745 | G77: 73 | H77: ='Dropdown & Conversions'!$D$14*'Steam and Water tables'!G77 -> 1058.775487 | I77: 2768.576863
B78: 73 | C78: 346.15 | D78: 1.01325 | E78: 305.6425303 | G78: 74 | H78: ='Dropdown & Conversions'!$D$14*'Steam and Water tables'!G78 -> 1073.279261 | I78: 2767.208125
B79: 74 | C79: 347.15 | D79: 1.01325 | E79: 309.8329866 | G79: 75 | H79: ='Dropdown & Conversions'!$D$14*'Steam and Water tables'!G79 -> 1087.783035 | I79: 2765.820769
B80: 75 | C80: 348.15 | D80: 1.01325 | E80: 314.0241641 | G80: 76 | H80: ='Dropdown & Conversions'!$D$14*'Steam and Water tables'!G80 -> 1102.286809 | I80: 2764.414989
B81: 76 | C81: 349.15 | D81: 1.01325 | E81: 318.2160837 | G81: 77 | H81: ='Dropdown & Conversions'!$D$14*'Steam and Water tables'!G81 -> 1116.790583 | I81: 2762.990966
B82: 77 | C82: 350.15 | D82: 1.01325 | E82: 322.4087662 | G82: 78 | H82: ='Dropdown & Conversions'!$D$14*'Steam and Water tables'!G82 -> 1131.294356 | I82: 2761.548869
B83: 78 | C83: 351.15 | D83: 1.01325 | E83: 326.6022323 | G83: 79 | H83: ='Dropdown & Conversions'!$D$14*'Steam and Water tables'!G83 -> 1145.79813 | I83: 2760.088858
B84: 79 | C84: 352.15 | D84: 1.01325 | E84: 330.796503 | G84: 80 | H84: ='Dropdown & Conversions'!$D$14*'Steam and Water tables'!G84 -> 1160.301904 | I84: 2758.611081
B85: 80 | C85: 353.15 | D85: 1.01325 | E85: 334.9915989 | G85: 81 | H85: ='Dropdown & Conversions'!$D$14*'Steam and Water tables'!G85 -> 1174.805678 | I85: 2757.115675
B86: 81 | C86: 354.15 | D86: 1.01325 | E86: 339.187541 | G86: 82 | H86: ='Dropdown & Conversions'!$D$14*'Steam and Water tables'!G86 -> 1189.309452 | I86: 2755.60277
B87: 82 | C87: 355.15 | D87: 1.01325 | E87: 343.3843501 | G87: 83 | H87: ='Dropdown & Conversions'!$D$14*'Steam and Water tables'!G87 -> 1203.813225 | I87: 2754.072485
B88: 83 | C88: 356.15 | D88: 1.01325 | E88: 347.582047 | G88: 84 | H88: ='Dropdown & Conversions'!$D$14*'Steam and Water tables'!G88 -> 1218.316999 | I88: 2752.524928
B89: 84 | C89: 357.15 | D89: 1.01325 | E89: 351.7806525 | G89: 85 | H89: ='Dropdown & Conversions'!$D$14*'Steam and Water tables'!G89 -> 1232.820773 | I89: 2750.9602
B90: 85 | C90: 358.15 | D90: 1.01325 | E90: 355.9801876 | G90: 86 | H90: ='Dropdown & Conversions'!$D$14*'Steam and Water tables'!G90 -> 1247.324547 | I90: 2749.378395
B91: 86 | C91: 359.15 | D91: 1.01325 | E91: 360.1806732 | G91: 87 | H91: ='Dropdown & Conversions'!$D$14*'Steam and Water tables'!G91 -> 1261.828321 | I91: 2747.779595
B92: 87 | C92: 360.15 | D92: 1.01325 | E92: 364.3821302 | G92: 88 | H92: ='Dropdown & Conversions'!$D$14*'Steam and Water tables'!G92 -> 1276.332094 | I92: 2746.163876
B93: 88 | C93: 361.15 | D93: 1.01325 | E93: 368.5845797 | G93: 89 | H93: ='Dropdown & Conversions'!$D$14*'Steam and Water tables'!G93 -> 1290.835868 | I93: 2744.531306
B94: 89 | C94: 362.15 | D94: 1.01325 | E94: 372.7880425 | G94: 90 | H94: ='Dropdown & Conversions'!$D$14*'Steam and Water tables'!G94 -> 1305.339642 | I94: 2742.881946
B95: 90 | C95: 363.15 | D95: 1.01325 | E95: 376.9925399 | G95: 91 | H95: ='Dropdown & Conversions'!$D$14*'Steam and Water tables'!G95 -> 1319.843416 | I95: 2741.215846
B96: 91 | C96: 364.15 | D96: 1.01325 | E96: 381.1980929 | G96: 92 | H96: ='Dropdown & Conversions'!$D$14*'Steam and Water tables'!G96 -> 1334.34719 | I96: 2739.533051
B97: 92 | C97: 365.15 | D97: 1.01325 | E97: 385.4047226 | G97: 93 | H97: ='Dropdown & Conversions'!$D$14*'Steam and Water tables'!G97 -> 1348.850963 | I97: 2737.833599
B98: 93 | C98: 366.15 | D98: 1.01325 | E98: 389.6124503 | G98: 94 | H98: ='Dropdown & Conversions'!$D$14*'Steam and Water tables'!G98 -> 1363.354737 | I98: 2736.117518
B99: 94 | C99: 367.15 | D99: 1.01325 | E99: 393.8212973 | G99: 95 | H99: ='Dropdown & Conversions'!$D$14*'Steam and Water tables'!G99 -> 1377.858511 | I99: 2734.384832
B100: 95 | C100: 368.15 | D100: 1.01325 | E100: 398.0312849 | G100: 96 | H100: ='Dropdown & Conversions'!$D$14*'Steam and Water tables'!G100 -> 1392.362285 | I100: 2732.635554
B101: 96 | C101: 369.15 | D101: 1.01325 | E101: 402.2424346 | G101: 97 | H101: ='Dropdown & Conversions'!$D$14*'Steam and Water tables'!G101 -> 1406.866059 | I101: 2730.869692
B102: 97 | C102: 370.15 | D102: 1.01325 | E102: 406.4547679 | G102: 98 | H102: ='Dropdown & Conversions'!$D$14*'Steam and Water tables'!G102 -> 1421.369832 | I102: 2729.087246
B103: 98 | C103: 371.15 | D103: 1.01325 | E103: 410.6683062 | G103: 99 | H103: ='Dropdown & Conversions'!$D$14*'Steam and Water tables'!G103 -> 1435.873606 | I103: 2727.288209
B104: 99 | C104: 372.15 | D104: 1.01325 | E104: 414.8830714 | G104: 100 | H104: ='Dropdown & Conversions'!$D$14*'Steam and Water tables'!G104 -> 1450.37738 | I104: 2725.472566
B105: 100 | C105: 373.15 | D105: 1.01325 | E105: 2675.584853 | G105: 101 | H105: ='Dropdown & Conversions'!$D$14*'Steam and Water tables'!G105 -> 1464.881154 | I105: 2723.640296
B107: * Enthalpy is calculated using Excel add-in for Steam and Water Tables "Water97_v13.xla" by Bernhard Spang

Sheet 2| Main Inputs
B2: BOILER PARAMETER INPUTS
B3: ISSUE: Calculating basic parameters of Boilers is time-taking and difficult at times. WHAT WE DO HERE: Enter basic parameters of boilers, Calculate Boiler Capacity, Steam Enthalpy and Water Enthalpy.
C4: Example | E4: Steam Production by Boiler
C5: 5.82 | F5: [Ton/h] | G5: > | H5: From steam flow meter
E6: Surface area of Boiler
C7: 4810 | F7: [ft²] | G7: > | H7: From boiler Manual if steam flow meter is not installed
E8: Total Energy Generated from Surface Area
C9: 4468.634 | E9: =E7*0.092903*10 -> 0 | F9: [kWth] | G9: > | H9: 1 m² Surface area = 10 kW
E10: Steam Pressure
C11: 7.5 | F11: [bar g] | G11: > | H11: From pressure gauge at Boiler output. Select Unit from Dropdown Menu
E12: Steam Temperature
C13: 168 | F13: [°C] | G13: >
E14: Specific Enthalpy of Steam at Required Pressure [Saturated Vapour]
C15: 2762.75 | E15: =VLOOKUP(E11,'Steam and Water tables'!$G$5:$I$105,3,TRUE) ->  | F15: [KJ/Kg] | G15: > | H15: Automatically calculated for entered pressure of Saturated Steam
E16: Calculated Steam Production by Boiler
C17: 5.82 | E17: =IF(E5>0,E5,E9/(E15/3600*1000)) ->  | F17: [Ton/h] | G17: > | H17: Used for Calculations
E18: Fuel Type
C19: Coal | E19: Natural Gas | G19: > | H19: Select fuel from option menu
E20: HFO | G20: > | H20: Default Selection is Natural gas
E21: LPG | G21: > | H21: All Values in Example column are for Natural Gas
E22: Coal | G22: > | H22: If your fuel is not listed here, please select the fuel with closest similarity in properties from this list.
E23: 4
E24: =IF(E23=1, "Natural Gas", IF(E23=2, "HFO", IF(E23=3, "LPG", IF(E23=4, "Coal", "No Fuel Selected")))) -> Coal | G24: >
E25: Fuel Price
C26: 16.5 | F26: =IF(E24="Natural Gas", 'Dropdown & Conversions'!D5,'Dropdown & Conversions'!D6) -> [Rs/kg] | G26: > | H26: Values in Example are for Natural Gas
E27: Gross Calorific Value
C28: 25104 | F28: =IF(E24="Natural Gas",'Dropdown & Conversions'!E5,'Dropdown & Conversions'!E6) -> [kJ/kg] | G28: > | H28: kJ/kg = kCal/kg x 4.184; See Utility Bill or Data Sheet or Test Report
E29: Net Heating Value
C30: 6.97 | E30: =IF(E24="Natural Gas",((E28*0.9)*1.0551*35.31/3600),IF(E24="HFO",(E28*0.9)/3600,E28/3600)) -> 0 | F30: =IF(E24="Natural Gas", 'Dropdown & Conversions'!F5,'Dropdown & Conversions'!F6) -> [kW/kg]
E32: Monthly Fuel Consumption
C33: 457223 | F33: =IF(E24="Natural Gas",'Dropdown & Conversions'!J5,'Dropdown & Conversions'!J6) -> [kg/mo] | G33: > | H33: Calculate monthly average from Utility Bill or Purchase Bill
E34: Annual Operation Hours
C35: 8640 | F35: [hr/y] | G35: > | H35: 24h/7d =8,760 hours; 24h/5d =6,240 hours; h/5d = 2,080 hours
E36: Temperature of Feed Water
C37: 120 | F37: [°C] | G37: > | H37: Final Temperature of feed water entering into the boiler
E38: Enthalpy of Water at Mentioned Temperature
C39: 502.44 | E39: =4.187*$E$37 -> 0 | F39: [KJ/Kg] | G39: > | H39: =Specific Heat of Water [4.187 kJ/kg°C] x Temperature of Feed Water [°C]
B41: HOW TO USE:
B42: 1. Insert data from your company,s boiler that are highlighted in white 2. Enthalpy of steam and water against working pressure and temperature are automatically calculated 3. Find the value of enthalpy of water against feed water temperature from water property table 4. Select Fuel Type. All corresponding units will change automatically 5. The tool uses the cell "Steam Production by Boiler" by default. If you dont have the steam flow meter installed, then enter the value in "Surface Area of Boiler" to calculate the steam production.

Sheet 3| Boiler Cost & Efficiency
B2: BOILER COST AND EFFICIENCY CALCULATIONS
B3: ISSUE: Steam produced is vary expensive form of energy. Efficiency of Boiler is important indicator of its performance.It directly effects the fuel consumption and cost. WHAT WE DO HERE: Calculate Overall Boiler Efficiency.
E4: Steam Cost
C5: Example | E5: Quantity of Fuel used per Ton of steam
C6: ='2| Main Inputs'!C33/('2| Main Inputs'!C17*('2| Main Inputs'!C35/12)) -> 109.1120179 | E6: ='2| Main Inputs'!E33/('2| Main Inputs'!E17*('2| Main Inputs'!E35/12)) ->  | F6: =IF('2| Main Inputs'!E24="Natural Gas",'Dropdown & Conversions'!K5,'Dropdown & Conversions'!K6) -> [kg/Ton] | G6: > | H6: The unit automatically changes based on fuel selected.
E7: Hourly fuel consumption
C8: =C6*'2| Main Inputs'!C17 -> 635.0319444 | E8: =E6*'2| Main Inputs'!E17 ->  | F8: =IF('2| Main Inputs'!E24="Natural Gas",'Dropdown & Conversions'!L5,'Dropdown & Conversions'!L6) -> [kg/hr] | G8: > | H8: Sm3 of gas, KG of oil or LPG /coal
E9: Cost of production per hour
C10: 34148 | E10: =IF('2| Main Inputs'!E24="Natural Gas",E8*'Dropdown & Conversions'!$H$5,IF('2| Main Inputs'!E24="HFO",E8*'2| Main Inputs'!E26,IF('2| Main Inputs'!E24="LPG",E8*'2| Main Inputs'!E26,IF('2| Main Inputs'!E24="Coal",E8*'2| Main Inputs'!E26,"select fuel in Main Inputs")))) ->  | F10: [Rs/ Hr] | G10: > | H10: (Without maintenance and Overheads)
E11: Cost of steam (Only fuel cost)
C12: 2277 | E12: =E10/'2| Main Inputs'!E17 ->  | F12: [Rs/Ton] | G12: > | H12: (Without maintenance and Overheads)
E13: Cost of steam (Only fuel cost)
C14: 274553049.8 | E14: =E10*'2| Main Inputs'!E35 ->  | F14: [Rs/y] | G14: > | H14: (Without maintenance and Overheads)
E15: Boiler Efficiency
C16: Example | E16: Energy input to boiler
C17: 13858 | E17: =E8*'2| Main Inputs'!E30 ->  | F17: [KW/hr] | G17: > | H17: = Hourly Fuel Consumption x Net heating Value of Fuel
E18: Net energy required to produce steam
C19: 2624 | E19: ='2| Main Inputs'!E15-'2| Main Inputs'!E39 ->  | F19: [KW/Ton] | G19: > | H19: = Specific Enthalpy of Steam - Enthalpy of Feed Water
E20: Net energy required to produce Hourly steam
C21: 10935 | E21: =E19*'2| Main Inputs'!E17*1000/3600 ->  | F21: [KW/h] | G21: > | H21: = Net Energy Required per Ton x Hourly Steam Production
E22: Overall Efficiency of Boiler (ƞ) | H22: =Quantity of steam generated per hour[T/h] x (enthalpy of steam at working pressure[kCal/kg]-Enthalpy of Feed water[kCal/kg]) / Quantity of Fuel used per hour[kgs/h] / GCV x 1000
C23: 0.7891 | E23: =+E21/E17 ->  | F23: [%] | G23: >
B26: HOW TO USE:
B27: 1. This sheet does not require any inputs.

Sheet 4| Combustion Efficiency
B2: CALCULATING COMBUSTION EFFICIENCY OF BOILER
B3: ISSUE: Steam is expensive form of energy used in different process and also to produce electricity, To produced steam at optimum cost, Boiler should run at optimum efficiency by reducing the excess air supplied for combustion. WHAT WE DO HERE: Calculate the Stoichiometric Excess Air, Loss Factors, and Combustion Efficiency of the boiler.
C4: Example | E4: Fuel Heating Value (Btu/lb)
C5: 10815 | E5: =IF('2| Main Inputs'!E24="Natural Gas", ('2| Main Inputs'!E28*35.3/0.78*0.45), ('2| Main Inputs'!E28/1.0551)/2.2) -> 0 | F5: [btu/lb] | G5: > | H5: Depends upon fuel selection
E6: %age of Flue gas Oxygen (Stack analysis (by volume, dry))
C7: 0.09 | F7: [%] | G7: > | H7: %age of oxygen using oxygen sensor or stack analyzer [Ideal Oxygen % is 2~3% for Natural Gas and LPG, 3.41% for HFO, 15~25% for Coal]
E8: Stoichiometric Excess air %
C9: 0.4373 | E9: =+E7*100/(20.9-E7) -> 0 | F9: [%] | G9: > | H9: = % Oxygen ÷ (20.9 - % Oxygen)
E10: Hydrogen content in fuel %
C11: 0.005 | F11: [%] | G11: > | H11: %age of Hydrogen in fuel. Moisture x 0.1119
E12: Sulphur content in Fuel %
C13: 0.0045 | F13: [%] | G13: > | H13: %age of Sulphur. See Safety Data Sheet of fule or contact supplier.
E14: % Carbon monoxide in exhaust gases
C15: 0.0006 | F15: [%] | G15: > | H15: %age of CO using stack analyzer = CO ppm ÷ 10,000
E16: Combustion air temperature at Inlet of burner
C17: 80 | F17: [°C] | G17: > | H17: Temperature of air when entered for combustions
E18: Exhaust gas stack temperature
C19: 328 | F19: [°C] | G19: > | H19: Exhaust gas/Flue gas temperature
E20: Stack Temp Rise
C21: 446 | E21: =CONVERT(E19,"C","F")-CONVERT(E17,"C","F") -> 0 | F21: [°F] | G21: > | H21: Differenceof temperature of gases at inlet and outlet in [°F] to use in calculations
E22: Calculated % of Carbon dioxide in Flue gas
C23: 0.1132 | E23: =(11.368-(0.556*E7))/100 -> 0.11368 | F23: [%] | G23: > | H23: =11.368-(0.556 x Oxygen%)
E24: Dry Flue gas (mass flow)
C25: 14.81 | E25: =IF('2| Main Inputs'!E24="Natural Gas",(((11*E23+8*E7+7*(100-E7-E23))*0.72)/(3*E23))/100,(((44*E23+32*E7+28*(100-E7-E23)+28*E15)/(12*(E23+E15)))*((0.72+(12*E13/32))))/100) -> 14.78792512 | F25: [kg/kg of fuel] | G25: > | H25: Depends upon fuel selection
E26: Calculated Combustion efficiency
C27: 0.8185 | E27: =(100-((E21)*(((0.66/(20.9-E7))+0.009))))/100 -> 1 | F27: [%] | G27: > | H27: calculated with 100 % fuel burning
E28: Calculated excess air in the Analysis
C29: 0.3412 | E29: =((100*E7)/(0.2682*(100-E7-E23)-E7)) -> 0 | F29: [%] | G29: > | H29: % excess air in the exhaust gas analysis
E30: Dry Flue gas loss due to stack temp and combustion air temp
C31: 1696.18 | E31: =+(E25*(E29/100)+E25+1)*0.24*(E21) -> 0 | F31: [btu/lb] | G31: > | H31: Loss due to excess oxygen and excess stack temperature | I31: =0.05/(11.36+0.05)*10160*0.75 -> 33.39176161
E32: Energy loss due to presence of Hydrogen n Fuel
C33: 0.54 | E33: =9*(E11/100)*((1055+0.467*E21)*100/E5)*100 ->  | F33: [btu/lb] | G33: > | H33: Loss due to excess hydrogen contents in fuel. Contact supplier for improvement
E34: Energy loss due to presence of C0 % in Stack gas
C35: 42.85 | E35: =((E15)/(E23+E15)*10160*0.75) -> 0 | F35: [btu/lb] | G35: > | H35: Loss due to CO in stack (incomplete combustion)
E36: Energy loss due to presence of Moisture in Fuel
C37: 60.21 | E37: =9*(E11/100)*(1089+(0.46*(E21)))*100 -> 0 | F37: [btu/lb] | G37: > | H37: Excess moisture in fuel results in heat loss in combustion. More effective in case of solid fuel
E38: Net Combustion Efficiency
C39: 0.8336 | E39: =+(1-(E37+E31+E33+E35)/E5) ->  | F39: [%] | G39: > | H39: = 1- (sum of all losses ÷ Fuel Heating Value)
B42: OVERALL EFFICIENCY CLASSIFICATION:
E43: EFFICIENCY | F43: OPTIMIZATION GUIDELINES
E44: 0.85 | F44: System is runnning well. Continuously monitor energy performance
E45: 0.83 | F45: Automate Boiler Controls, Improve Fuel Properties(GCV*, Sulphur, Moisture)
E46: 0.8 | F46: Adjust Air:Fuel ratio, Check Insulations, Inspect Steam Traps and PRVs*
E47: 0.77 | F47: Pre-Heat Air and/or Feed Water, Conduct Boiler Maintenance
E48: 0.75 | F48: Consult Expert; Boiler is Over Designed or Needs Replacement
E49: * | F49: GCV = Gross Calorific Value
E50: ** | F50: PRV = Pressure Reducing Valve
B51: HOW TO USE:
B52: 1. Insert data from your company in cells that are highlighted in white 2. Find current combustion efficiency by using graph agaisnt %age of flue gas oxygen at line of Stack Temperature rise in [°F] 3. Find Proposed combustion efficiency by using graph agaisnt %age of proposed oxygen at line of Stack Temperature rise [°F]

Sheet 5| Steam Leakage Calculation
B2: STEAM LEAKAGE COST CALCULATION BY USING SIZE OF ORIFICE
B3: ISSUE: A considerable amount of steam is wasted through leaks in the steam distribution system and equipments. This wastage of energy can be saved through proper leakage management program. WHAT WE DO HERE: Calculate the cost of steam leakge through orifices of different sizes.
C4: Example | E4: Approximate diameter of orifice
C5: 0.03125 | F5: [In] | G5: > | H5: Enter orifice dia from which steam leaks
E6: Line Pressure
C7: 4 | F7: [bar g] | G7: > | H7: Pressure in the line where leakage is detected
E8: Amount of steam loss per hour
C9: 1.72 | E9: =+(24.24*((E7*'Dropdown & Conversions'!$D$14)+14.7)*(E5^2)) -> 0 | F9: [lb/h] | G9: > | H9: [=24.24 x (gauge pressure in psi + atm pressure in psi) x (Orifice Dia)²
E10: Amount of steam loss per hour
C11: 0.0007809903105 | E11: =E9/2204 -> 0 | F11: [Ton/yr] | G11: > | H11: Amount of steam loss per hour[lb/h] / 2204
E12: Amount of steam loss per year
C13: 6.3 | E13: =E11*'2| Main Inputs'!E35 -> 0 | F13: [Ton/yr] | G13: > | H13: Amount of steam loss per hour[T/h] x Annual operation Hours
E14: Cost of steam loss per year
C15: 14295 | E15: =E13*'3| Boiler Cost & Efficiency'!E12 ->  | F15: [Rs/y] | G15: > | H15: Amount of steam loss per year[T/y] x Average steam cost per ton[Rs/T]
B18: HOW TO USE:
B19: 1. Insert data from your company in cells that are highlighted in white

Sheet 6| Insulation Thickness + Cost
B2: CALCULATE REQUIRED INSULATION THICKNESS & COST
B3: ISSUE: Considerable energy loss occurs due to heat loss in distribution system (Piping without insulation). WHAT WE DO HERE: Calculate required insulation thickness and energy saving potential.
E5: Heat Loss through Uninsulated Pipes
C6: Example | E6: Dia of pipe
C7: 16 | F7: [In] | G7: > | H7: Enter dia of pipe containing fluid
E8: Uninsulated Pipe Length
C9: 20 | F9: [ft] | G9: > | H9: Enter length of uninsulated pipe
E10: Surface area of pipe
C11: 83.73 | E11: =(2*3.14*E9/2/12*E7) -> 0 | F11: [ft²] | G11: > | H11: Surface area of pipe
E12: Surface Temp (Ts)
C13: 101 | F13: [°C] | G13: > | H13: Temperature of pipe
E14: Ambient Temp (Ta)
C15: 35 | F15: [°C] | G15: > | H15: Ambiant temperature where pipe is installed
E16: Convection Losses
C17: 14921 | E17: =(E13-E15)*1.8*1.5*E11 -> 0 | F17: [btu/hr] | G17: > | H17: (Surface Temp [°C]-Ambient Temp [°C]) x 1.8 x Surface area of pipe x Co-efficient of convection[1.5 btu/ft²/hr/˚F]
E18: Emisivity ξ
C19: 0.4 | F19: - | G19: > | H19: Range from 0.1 - 1.0 for different material (0.4 for dull colour steel pipes) check emisivity value at http://www.infrared-thermography.com/material.htm
E20: Ts⁴
C21: =(C13*1.8+492)^4 -> 2.061218476e+11 | E21: =(E13*1.8+492)^4 -> 58594980096 | F21: [R⁴] | G21: > | H21: (Surface temperature x 1.8 + 492)⁴
E22: Ta⁴
C23: =(C15*1.8+492)^4 -> 94879400625 | E23: =(E15*1.8+492)^4 -> 58594980096 | F23: [R⁴] | G23: > | H23: (Ambiant temperature x 1.8 + 492)⁴
E24: Radiation Losses
C25: 6386 | E25: =E11*0.000000001714*(E21-E23)*E19 -> 0 | F25: [btu/hr] | G25: > | H25: (Ts⁴ -Ta⁴) x Stefen boltzman[1.714E-09 btu/ft²/hr/R⁴] x Emisivity x Surface area of pipe
E27: Total Heat Loss
C28: 21307 | E28: =E25+E17 -> 0 | F28: [btu/hr] | G28: > | H28: Radiation loss + Convection Loss
E29: Energy loss per year
C30: 171.31 | E30: =IF('2| Main Inputs'!E$24="Natural Gas",('2| Main Inputs'!E$35*E28)/1000000,IF('2| Main Inputs'!E$24="HFO",(('2| Main Inputs'!E$35*E28)/1000000)*'Dropdown & Conversions'!$E$17,IF('2| Main Inputs'!E$24="LPG",(('2| Main Inputs'!E$35*E28)/1000000)*'Dropdown & Conversions'!$E$18,(('2| Main Inputs'!E$35*E28)/1000000)*'Dropdown & Conversions'!$E$19))) -> 0 | F30: =IF('2| Main Inputs'!E24="Natural Gas", 'Dropdown & Conversions'!M5,'Dropdown & Conversions'!M6) -> [kg/y] | G30: > | H30: Total heat loss x annaul operation hours /10⁶
E31: Cost of energy lost per year
C32: 111353 | E32: =E30*'2| Main Inputs'!E$26 -> 0 | F32: [Rs/y] | G32: > | H32: Energy loss per year x Fuel Price
E35: Economic Insulation Thickness
C36: Example | E36: Steam Temperature
C37: 356 | E37: =_xll.CONVERTIR('2| Main Inputs'!E13,"C", "F") ->  | F37: [°F] | G37: > | H37: Temperature in [°F] Converted from "Basic Inputs" will be used to find the value of thermal conductivity and Heat loss per length
E38: Maximum allowable surface Temperature after insulation
C39: 50 | F39: [°C] | G39: > | H39: Surface temperature of pipe after insulation
E40: Thermal conductivity of insualting material
C41: 0.04 | F41: [W/K/m] | G41: > | H41: Different materials have different thermal conductivity at different temperatures. Find value against temperature in graph
E42: Max. Allowable Heat loss per unit length of insulated pipe
C43: 80 | F43: [W/m] | G43: > | H43: Enter maximum allowable heat loss per meter or use default value of 80 Watt/m
E44: Calculated Diameter of pipe with Insulation
C45: 24.1 | E45: =(EXP(2*22/7*E41*('2| Main Inputs'!E13-E39)/E43)*'6| Insulation Thickness + Cost'!E7) ->  | F45: [In] | G45: > | H45: EXP{2 x π x Thermal conductivity of insualting material[Watt/K/m] x (Fluid Temperature[°C] -Maximum allowable surface Temperature after insulation[in] [°C])/Heat loss per unit length of insulated pipe} x Diameter of beared pipe carrying fluid[In]
E46: Required Insulation thickness(t)
C47: 4 | E47: =(E45-'6| Insulation Thickness + Cost'!E7)/2 ->  | F47: [In] | G47: > | H47: (Diameter of insulated pipe carrying fluid[in]-Diameter of beared pipe carrying fluid[In])/2
E50: Insulation Cost and Payback
C51: Example | E51: Mean Diameter of Pipe after Insulation
C52: 20 | E52: =E47+'6| Insulation Thickness + Cost'!E7 ->  | F52: [In] | G52: > | H52: Diameter of pipe after insulation
E53: Area of Insulation Material Required
C54: 104.9 | E54: =_xll.CONVERTIR((2*PI()*E52/2),"in","ft")*'6| Insulation Thickness + Cost'!E9 ->  | F54: [ft²] | G54: > | H54: Required Area of Insulation Sheet
E55: Price of Insulation Material
C56: 150 | F56: [Rs/ft²] | G56: > | H56: Price of insulation material as quoted by vendors
E57: Area of Insulation Jacket Required
C58: 126.1 | E58: =_xll.CONVERTIR((2*PI()*E45/2),"in","ft")*'6| Insulation Thickness + Cost'!E9 ->  | F58: [ft²] | G58: > | H58: Required Area of Insulation Jacket Cover
E59: Price of Insulation Jacket Material
C60: 300 | F60: [Rs/ft²] | G60: > | H60: Price of insulation jacket material as quoted by vendors
E61: Labour Rate
C62: 20 | F62: [Rs/ft²] | G62: > | H62: Prevailing Labour rate for insulation works
E63: Cost of Insulation Material
C64: 15737.3 | E64: =E56*E54 ->  | F64: [Rs] | G64: > | H64: =Area of Insulation x Price of insulation
E65: Cost of Insulation Jacket
C66: 37816.4 | E66: =E60*E58 ->  | F66: [Rs] | G66: > | H66: =Area of Jacket x Price of Jacket
E67: Labour Cost
C68: 400 | E68: =E62*'6| Insulation Thickness + Cost'!E9 -> 0 | F68: [Rs] | G68: > | H68: =Length of Uninsulated Pipe x Labour Rate
E69: Total Insulation Cost
C70: 53953.68 | E70: =E64+E66+E68 ->  | F70: [Rs] | G70: > | H70: = sum of costs of insulation material, jacket and labour
E71: Payback Period
C72: 5.8 | E72: =E70*12/E32 ->  | F72: [mo]
B75: HOW TO USE:
B76: 1. Insert data from your company in cells that are highlighted in white 2. Find the Thermal Conductivity of insulation material against Fluid temperature from Graphs

Sheet 7| Condensate Recovery
B2: COST SAVING THROUGH CONDENSATE RECOVERY
B3: ISSUE: Condensate contains valuable energy in it. It must be recovered to maximize boiler efficiency. Moreover it also reduced the water and water treatment costs as well. WHAT WE DO HERE: Calculate the energy saving by condensate recovery.
C4: Example | E4: Quantity of condensate water recovered per hour
C5: 8500 | F5: [kg/h] | G5: > | H5: Condensate water recovered in one hour
E6: % condensate water
C7: 0.5667 | E7: =(E5/1000)/'2| Main Inputs'!E17 ->  | F7: [%] | G7: > | H7: % of condensate recovered against total water consumption
E8: % make-up water
C9: =1-C7 -> 0.4333 | E9: =1-E7 ->  | F9: [%] | G9: > | H9: % of condensate recovered against total water consumption
E10: Temperature of Condensate water
C11: 95 | F11: [°C] | G11: > | H11: Temperature at which condensate water is recovered
E12: Temperature of makeup water
C13: 33 | F13: [°C] | G13: > | H13: Ambiant temperature of make up water
E14: Estimated Temperature of Feed water
C15: 68 | E15: =SUM(E11*E7+E13*E9)/(E7+E9) ->  | F15: [°C] | G15: > | H15: Temperature of feed water after mixing condensate and makeup water
E16: Enthalpy of Feed water
C17: 285 | E17: =VLOOKUP(E15,'Steam and Water tables'!$B$5:$E$105,4,TRUE) ->  | F17: [KJ/Kg] | G17: > | H17: Automatically calculated for entered temperature of makeup water (upto 100 °C)
E18: Raw water cost
C19: 10 | F19: [Rs/T] | G19: > | H19: The price of raw water per Ton
E20: Water treatment cost
C21: 30 | F21: [Rs/T] | G21: > | H21: Total water treatment cost like chemical, filteration, descaling etc
E22: Energy Saving per year
C23: 2169 | E23: =+(E17/1.0551)*1000*'2| Main Inputs'!E35/1000000 ->  | F23: [mmbtu/y] | G23: > | H23: Quantity of condensate water recovered per hour [kg/h] x Water specific heat[kJ/kg/°C] x (Temperature of Condensate water [°C] -Temperature of makeup water [°C]) x 0.9478/1000000
E24: Fuel cost Saving per year
C25: 1410144.981 | E25: =IF('2| Main Inputs'!E$24="Natural Gas",('2| Main Inputs'!E$26*E$23),IF('2| Main Inputs'!E$24="HFO",E23*'Dropdown & Conversions'!H6,IF('2| Main Inputs'!E$24="LPG",E23*'Dropdown & Conversions'!H7,E23*'Dropdown & Conversions'!H8))) ->  | F25: [Rs/y] | G25: > | H25: Cost of fuel saved in a year
E26: Water Cost saving per year
C27: 2733600 | E27: =((E21+E19)*E5*'2| Main Inputs'!E35)/1000 -> 0 | F27: [Rs/y] | G27: > | H27: Cost of water saved in a year
E28: Total Cost Saving
C29: 4143744.981 | E29: =E25+E27 ->  | F29: [Rs/y] | G29: > | H29: Total saving per year
B32: HOW TO USE:
B33: 1. Insert data from your company in cells that are highlighted in white

Sheet 8| Economizer
B2: POTENTIAL SAVING BY INSTALLING ECONOMIZER
B3: ISSUE: Steam is expensive form of energy used in different process . To produced steam at optimum cost, economizer has important role to recover waste heat from stack and increases the efficiency of Boiler, and thus cuts cost of boiler's operation. WHAT WE DO HERE: Calculate the potential energy saving by installation of economizer.
C4: Example | E4: %age of Flue gas Oxygen by Stack analysis (by volume, dry)
C5: 0.02 | F5: [%] | G5: > | H5: Enter data from "4| Combustion Efficiency" if same
E6: Combustion air temperature at Inlet
C7: 40 | F7: [°C] | G7: > | H7: Enter data from "4| Combustion Efficiency" if same
E8: Current Exhaust gas stack temperature
C9: 250 | F9: [°C] | G9: > | H9: Enter data from "4| Combustion Efficiency" if same
E10: Proposed Exhaust gas stack temperature
C11: 200 | F11: [°C] | G11: > | H11: Target Exhaust gas/Flu gas temperature
E12: Current stack Temerature rise
C13: 378 | E13: =CONVERT(E9,"C","F")-CONVERT(E7,"C","F") -> 0 | F13: [°F] | G13: > | H13: Current Difference of temperature of gases at inlet and outlet
E14: Proposed stack temerature rise
C15: 288 | E15: =CONVERT(E11,"C","F")-CONVERT(E7,"C","F") -> 0 | F15: [°F] | G15: > | H15: Proposed Difference of temperature of gases at inlet and outlet
E16: Current combustion efficiency
C17: 77.96 | F17: [%] | G17: > | H17: Find the current combustion effeciency using sheet "4| Combustion Efficiency" at Current Exhaust Temperature
E18: Proposed Combustion efficiency
C19: 80.27 | F19: [%] | G19: > | H19: Find the Proposed combustion effeciency using sheet "4| Combustion Efficiency" at Proposed Exhaust Temperature
E20: % fuel saving
C21: 0.029 | E21: =((E19-E17)/E19) ->  | F21: [%] | G21: > | H21: (Proposed combustion efficiency-Current combustion efficiency)/Current combustion efficiency
E22: Fuel Saving per year
C23: 7901053 | E23: =E21*'3| Boiler Cost & Efficiency'!E14 ->  | F23: [Rs/y] | G23: > | H23: %age Fuel saving x Cost of current Fuel consumption per year
B26: HOW TO USE:
B27: 1. Insert data from your company in cells that are highlighted in white
